Cogmind - Beta 15 *** ADVENTURER MODE // 2025.07.06 @ 22:57:02 Player: Gentle Jesus Result: Destroyed by P-70 Sage with High-powered Shock Rifle Performance ------------- Evolutions (6) 3000 Regions Visited (14) 2800 Robots Destroyed (177) 885 Value Destroyed (7548) 7548 Prototype IDs (10) 200 Alien Tech Used (0) 0 Bonus (2289) 2289 TOTAL SCORE: 16722 Bonus ------- High Alert Combat Kills 236 Follower Combat Kills 969 Entered Garrisons 400 Used RIF Installer 1000 Friendly Fire -316 Cogmind --------- Core Integrity 0/1150 Matter 208/300 Energy 99/100 System Corruption 7% Temperature Cool (0) Movement Core (50) Location -4/Factory Parts ------- > --- POWER (3) -------- (None) > --- PROPULSION (7) --- (None) > --- UTILITY (7) ------ Advanced Visual Processing Unit Advanced Signal Interpreter Improved Target Analyzer > --- WEAPON (2) ------- (None) > --- INVENTORY (5) ---- Micro Fission Core Advanced Heat Sink Mini Smartbomb Launcher Peak State ------------ > --- POWER ------------ Light Nuclear Core Micro Nuclear Core > --- PROPULSION ------- Carbon-fiber Leg VSS Leg VSS Leg VSS Leg Multireflex Exoskeleton > --- UTILITY ---------- High-capacity Storage Unit Advanced Targeting Computer Advanced Targeting Computer Advanced Targeting Computer Core Analyzer Improved Power Shielding Hacking Suite > --- WEAPON ----------- Mini Assault Cannon Magnetic Acceleration Cannon > --- INVENTORY -------- Light Ion Engine Light Angular Momentum Engine Micro Fission Core Enhanced Armored Leg Improved Heat Sink Improved Heat Sink High-capacity Matter Pod Target Analyzer Core Analyzer Matter Filter Improved Power Shielding Hacking Suite Advanced Hacking Suite Drone Bay Plasma Rifle Thermic Laser Mini Assault Cannon Heavy Missile Launcher Long-range Missile Launcher Remote Datajack [Rating: 69] Favorites ----------- Power Light Ion Engine Engine Light Ion Engine Power Core Light Nuclear Core Reactor Micro Antimatter Reactor Propulsion Carbon-fiber Leg Leg Carbon-fiber Leg Wheel Wheel Hover Unit Antigrav System Utility Advanced Targeting Computer Device Improved Sensor Array Storage High-capacity Storage Unit Processor Advanced Targeting Computer Hackware Hacking Suite Protection Layered Light Armor Plating Weapon Mini Assault Cannon Energy Gun EM Pulse Gun Energy Cannon Plasma Cannon Ballistic Gun Gauss Rifle Ballistic Cannon Mini Assault Cannon Launcher Heavy Missile Launcher Special Weapon Mining Laser Special Melee Weapon Datajack Build | -11 -10 -10 -10 -9 -8 -8 -8 -7 -7 -6 -6 -6 -5 -4 ------- Run | Yrd Mat Min Exi Min Mat Gar Mat Fac Sto Fac Gar Fac Fac Fac Slots Evolved 12 | . . . . . 4 . . 2 . 2 . . 2 2 Power 2 | . . . . . . . . . . 1 . . . 1 Propulsion 5 | . . . . . 2 . . 1 . . . . 1 1 Utility 5 | . . . . . 2 . . 1 . 1 . . 1 . Weapon . | . . . . . . . . . . . . . . . Parts Attached 146 | 6 1 . 1 . 12 9 9 4 16 13 8 28 12 27 Power 22 | 1 . . . . . 1 1 . 2 2 2 6 1 6 Engine 12 | 1 . . . . . 1 . . 2 1 . 4 1 2 Core 9 | . . . . . . . 1 . . 1 2 2 . 3 Reactor 1 | . . . . . . . . . . . . . . 1 Propulsion 38 | 2 . . . . 2 5 2 1 7 1 2 6 3 7 Treads . | . . . . . . . . . . . . . . . Leg 26 | . . . . . . 5 2 1 7 1 2 6 2 . Wheel 10 | 2 . . . . 2 . . . . . . . 1 5 Hover 2 | . . . . . . . . . . . . . . 2 Flight . | . . . . . . . . . . . . . . . Utility 42 | 1 1 . 1 . 4 1 4 . 3 4 2 8 6 7 Device 11 | . 1 . . . 2 . 1 . 2 1 . 1 2 1 Storage 4 | 1 . . 1 . . . . . . . . . . 2 Processor 10 | . . . . . 1 . 1 . . 1 2 1 . 4 Hackware 4 | . . . . . . . 1 . . . . 2 1 . Protection 13 | . . . . . 1 1 1 . 1 2 . 4 3 . Artifact . | . . . . . . . . . . . . . . . Weapon 44 | 2 . . . . 6 2 2 3 4 6 2 8 2 7 Energy Gun 5 | 1 . . . . . . 1 . . . . . 2 1 Energy Cannon 4 | . . . . . 2 . . . . 1 1 . . . Ballistic Gun 9 | 1 . . . . 1 . . 3 . . . . . 4 Ballistic Cannon 12 | . . . . . 1 1 . . 1 4 . 4 . 1 Launcher 11 | . . . . . 1 1 . . 3 1 1 3 . 1 Special Weapon 2 | . . . . . 1 . . . . . . 1 . . Impact Weapon . | . . . . . . . . . . . . . . . Slashing Weapon . | . . . . . . . . . . . . . . . Piercing Weapon . | . . . . . . . . . . . . . . . Special Melee Weapon 1 | . . . . . . . 1 . . . . . . . Unidentified Prototypes 10 | . . . . . 2 . . 1 2 1 . 1 1 2 Parts Lost 78 | . . . . . 1 . 5 . 2 6 5 18 14 27 Power 20 | . . . . . . . 1 . 1 2 2 5 3 6 Propulsion 22 | . . . . . . . 2 . 1 1 . 5 5 8 Utility 19 | . . . . . 1 . 1 . . 3 2 4 3 5 Weapon 17 | . . . . . . . 1 . . . 1 4 3 8 Highest Loss Streak 8 | . . . . . 1 . 3 . 2 3 5 8 7 8 To Critical Strikes . | . . . . . . . . . . . . . . . Average Backups 13 | 1 1 3 4 5 5 15 19 19 19 16 16 13 14 3 Power 1 | . 1 1 1 1 1 3 1 1 . . . 1 2 . Propulsion 1 | . . 1 1 1 . 1 2 2 2 3 3 2 . . Utility 5 | . . . . 1 1 5 9 8 9 7 5 5 6 . Weapon 4 | . . 1 2 2 2 5 5 6 6 5 5 3 3 1 Tool/Special . | . . . . . . . . . . . . . . . Unused Backups 12 | . . . . . . . . . 1 1 . 1 6 3 Power 3 | . . . . . . . . . . . . . 2 1 Propulsion 1 | . . . . . . . . . . . . 1 . . Utility 6 | . . . . . . . . . 1 . . . 4 1 Weapon 2 | . . . . . . . . . . 1 . . . 1 Tool/Special . | . . . . . . . . . . . . . . . Average Slot Usage (%) 87 | . 100 100 100 100 94 98 94 99 99 88 78 85 75 55 Engine 6 | . 14 14 14 14 9 9 3 . 5 10 . 5 . 4 Core 2 | . . . . . . . 5 7 1 1 8 5 7 . Leg 20 | . . . . . . 30 34 38 37 25 21 22 19 . Wheel 6 | . 28 28 28 28 35 4 . . . . . . . 8 Device 6 | . 14 14 14 14 10 . . 14 7 6 9 3 . 2 Storage 7 | . 14 14 14 14 9 9 9 7 7 6 6 6 3 4 Processor 11 | . . . . . 3 9 9 7 7 12 16 23 19 18 Hackware 1 | . . . . . . . 1 . . . . 2 3 4 Protection 7 | . . . . . 8 17 14 7 14 10 2 1 6 . Energy Gun 2 | . 14 14 14 14 . . 1 . . . . . 1 . Energy Cannon 1 | . . . . . 4 9 6 2 . 2 6 2 . . Ballistic Gun 4 | . 14 14 14 14 5 2 . 5 7 . . . . 3 Ballistic Cannon 5 | . . . . . 6 6 5 5 5 7 2 7 7 4 Peak Build Rating 69 | 6 7 7 8 8 26 31 36 42 47 61 67 67 69 55 Average Rating 40 | 4 7 7 7 8 19 29 32 41 44 56 59 57 54 42 On Entrance 27 | . 6 7 7 8 8 26 31 34 42 45 53 60 61 27 Naked Turns . | . . . . . . . . . . . . . . . Heaviest Build 86 | 11 12 12 47 47 56 64 65 65 66 86 83 78 65 46 Greatest Support 90 | 26 26 26 26 26 48 53 60 70 77 81 90 90 87 60 Greatest Overweight (x) 12 | 3 . . 1 1 1 6 1 . 1 1 1 1 1 12 Average Overweight (x) . | . . . . 1 1 1 . . . . . . . . Largest Inventory Capacity 20 | 8 8 8 20 20 20 20 20 20 20 20 20 20 20 15 Average Capacity 17 | 7 8 8 8 20 20 20 20 20 20 20 20 20 15 13 Most Carried 20 | 4 3 4 6 7 12 18 20 20 20 20 20 20 20 7 Average Carried 13 | 1 1 3 4 5 5 15 19 19 19 18 16 13 14 3 Final Capacity 20 | 8 8 8 20 20 20 20 20 20 20 20 20 20 5 5 Final Carried 20 | 2 3 4 5 7 12 18 19 19 20 20 15 18 2 3 Class Distribution -------------------- 50% | Mutant 17% | Hacker-Mutant 14% | Scavenger-Mutant 12% | Commander-Mutant 3% | Scavenger-Skirmisher Dominant Class ---------------- Mutant | -10/Materials Mutant | -10/Mines Commander-Mutant | -10/Exiles Mutant | -9/Mines Mutant | -8/Materials Scavenger-Mutant | -8/Garrison Mutant | -8/Materials Mutant | -7/Factory Commander-Mutant | -7/Storage Mutant | -6/Factory Mutant | -6/Garrison Hacker-Mutant | -6/Factory Hacker-Mutant | -5/Factory Hacker-Mutant | -4/Factory Resources | -11 -10 -10 -10 -9 -8 -8 -8 -7 -7 -6 -6 -6 -5 -4 ----------- Run | Yrd Mat Min Exi Min Mat Gar Mat Fac Sto Fac Gar Fac Fac Fac Matter Collected 5480 | 264 . 14 . 17 158 201 103 142 1035 541 421 974 657 953 Remotely . | . . . . . . . . . . . . . . . Salvage Created 5300 | 19 . 40 . 46 80 223 145 105 1123 409 560 881 642 1027 Parts 273 | 1 . 3 . 3 5 21 6 3 45 23 25 56 27 55 Haulers Intercepted 4 | . . . . . 1 . . . 2 . . . 1 . Recyclers Shooed 2 | . . . . . . . . . . . . . 2 . Parts Field Recycled . | . . . . . . . . . . . . . . . Retrieved Matter . | . . . . . . . . . . . . . . . Parts Self-Destructed . | . . . . . . . . . . . . . . . Prevented . | . . . . . . . . . . . . . . . Kills | -11 -10 -10 -10 -9 -8 -8 -8 -7 -7 -6 -6 -6 -5 -4 ------- Run | Yrd Mat Min Exi Min Mat Gar Mat Fac Sto Fac Gar Fac Fac Fac Combat Hostiles Destroyed 131 | . . 2 . 3 1 10 3 2 20 11 19 25 18 17 Guns 25 | . . 2 . 3 . 2 1 . 8 . . . 5 4 Cannons 66 | . . . . . 1 5 2 2 1 4 11 19 9 12 AOE 39 | . . . . . . 3 . . 11 7 7 6 4 1 Classes Destroyed 17 | 1 . 1 . . 2 2 . . 9 2 . . . . Worker 14 | . . . . . . . . . 2 3 . 1 1 7 Builder 10 | . . . . . . . . . 2 . . 3 1 4 Tunneler 1 | 1 . . . . . . . . . . . . . . Hauler 4 | . . . . . 1 . . . 2 . . . 1 . Recycler 4 | . . . . . . . . . 3 . . . . 1 Mechanic 1 | . . . . . . . . . 1 . . . . . Watcher 11 | . . . . . . . . . 1 2 . 2 3 3 Swarmer 40 | . . 2 . 3 . 6 . . . . 10 9 6 4 Grunt 38 | . . . . . . 2 1 . 10 3 6 10 5 1 Brawler 5 | . . . . . . . . . 2 . 2 . 1 . Duelist 5 | . . . . . . 1 . . . 2 1 1 . . Protector 1 | . . . . . . . . . 1 . . . . . Sentry 18 | . . . . . 1 1 2 2 4 1 . 2 . 5 Specialist 4 | . . . . . . . . . . 2 . . 2 . Hunter 4 | . . . . . . . . . 1 1 . 1 . 1 Programmer 15 | . . . . . . . . . 2 1 . 2 4 6 Heavy 1 | . . . . . . . . . . 1 . . . . Thug 1 | . . . . . . . . . 1 . . . . . Best Kill Streak 13 | 1 . 2 . 2 1 6 1 1 13 5 13 9 6 12 Combat Bots Only 13 | . . 2 . 2 1 6 1 1 9 3 13 6 5 4 Max Kills in Single Turn 4 | 1 . 1 . 2 1 3 1 1 4 2 3 2 2 4 Gunslinging 1 | . . . . 1 . . . . . . . . . . Exploded 3 | . . . . . . 3 . . 3 2 3 1 2 1 Melee . | . . . . . . . . . . . . . . . Uniques/NPCs Destroyed . | . . . . . . . . . . . . . . . Combat | -11 -10 -10 -10 -9 -8 -8 -8 -7 -7 -6 -6 -6 -5 -4 -------- Run | Yrd Mat Min Exi Min Mat Gar Mat Fac Sto Fac Gar Fac Fac Fac Hostile Shots Fired 1451 | . . 9 . 8 6 49 50 45 173 181 68 342 229 291 Missed 533 | . . 3 . 2 . 10 12 19 59 70 21 136 92 109 Hits 918 | . . 6 . 6 6 39 38 26 114 111 47 206 137 182 Melee 7 | . . . . . . 2 . . . 3 2 . . . Projectile 911 | . . 6 . 6 6 37 38 26 114 108 45 206 137 182 AOE 7 | . . . . . . . . . . 2 . 5 . . Critical Strikes 25 | . . . . . . 1 3 . 1 3 2 2 6 7 Part Disruptions 2 | . . . . . . . . . . . . . 2 . Damage Taken 12462 | . . 38 . 34 69 501 593 144 1106 1478 692 2366 2128 3313 Core 2587 | . . 6 . 9 . 71 34 25 129 94 78 467 513 1161 Absorbed by Shields . | . . . . . . . . . . . . . . . Redirected to Shielding 567 | . . . . . . . . . . 103 . 315 149 . Ignored by Resistances 3491 | . . 12 . 12 20 150 165 51 335 414 193 698 540 901 Regen/Repaired (Parts) 104 | . . . . . . . . . 104 . . . . . Core Remaining (%) 70 | 100 . . . 94 . . 80 . 78 . . 24 48 . Volleys Fired 394 | 4 . 4 . 7 8 29 12 10 62 49 30 48 52 79 Largest 2 | 2 . 2 . 2 2 2 2 2 2 2 2 2 2 2 Hottest 149 | 60 . 60 . 60 101 97 140 97 68 124 149 124 128 88 Shots Fired 679 | 8 . 8 . 14 16 50 22 17 111 85 49 88 94 117 Gun 208 | 8 . 8 . 14 1 12 5 3 70 3 . . 26 58 Cannon 406 | . . . . . 14 37 17 14 24 72 41 75 60 52 Launcher 64 | . . . . . 1 1 . . 17 10 8 12 8 7 Special 1 | . . . . . . . . . . . . 1 . . Kinetic 442 | 4 . 4 . 7 8 20 5 12 94 53 8 57 60 110 Thermal 138 | . . . . . 7 29 17 5 . 22 27 5 26 . Explosive 64 | . . . . . 1 1 . . 17 10 8 12 8 7 Electromagnetic 34 | 4 . 4 . 7 . . . . . . 6 13 . . Robot Hit Streak 38 | 3 . 2 . 5 12 19 17 11 27 38 22 37 30 18 Robot Miss Streak 2 | 1 . 2 . 1 1 1 2 1 2 2 1 2 2 2 Penetration Max 1 | . . . . . . . . . 1 . . . . 1 Secondary Targets 4 | . . 1 . 2 . . . . 1 . . . . . Max Gunslinging Chain 1 | . . 1 . 1 . . . . 1 . . . . . Shots Hit Robots 486 | 5 . 4 . 10 12 31 24 13 76 62 30 63 74 82 Core Hits 339 | 2 . 3 . 4 3 12 7 4 80 30 34 50 46 64 Critical Kills 2 | . . . . . . . . . 1 . 1 . . . Critical Parts Destroyed 7 | . . . . . . . . . 2 . . . . 5 Critical Strikes 31 | 1 . . . . . 1 1 1 3 2 2 5 5 10 Burn 1 | . . . . . . . . . . . . . 1 . Meltdown 1 | . . . . . . . . . . . 1 . . . Destroy 8 | . . . . . . . . . 3 . . . . 5 Blast 20 | . . . . . . 1 1 1 . 2 1 5 4 5 Corrupt 1 | 1 . . . . . . . . . . . . . . Melee Attacks 3 | . . . . . . . 3 . . . . . . . Impact . | . . . . . . . . . . . . . . . Slashing . | . . . . . . . . . . . . . . . Piercing . | . . . . . . . . . . . . . . . Sneak Attacks 1 | . . . . . . . 1 . . . . . . . Combat Hostiles . | . . . . . . . . . . . . . . . Follow-up Attacks . | . . . . . . . . . . . . . . . Damage Inflicted 20985 | 61 . 46 . 100 251 895 495 290 4163 2467 1728 3048 3596 3845 Guns 3463 | 61 . 40 . 100 . 165 110 58 1118 37 . . 499 1275 Cannons 8190 | . . . . . 251 533 374 232 403 1439 738 1731 1343 1146 Explosions 9158 | . . . . . . 197 . . 2587 991 990 1317 1698 1378 Melee . | . . . . . . . . . . . . . . . Ramming 174 | . . 6 . . . . 11 . 55 . . . 56 46 Kinetic 8412 | 8 . 8 . 44 126 302 121 196 1521 948 132 1242 1343 2421 Thermal 2890 | . . . . . 125 396 363 94 . 528 454 131 517 282 Explosive 8839 | . . . . . . 197 . . 2587 991 990 1317 1680 1077 Electromagnetic 670 | 53 . 32 . 56 . . . . . . 152 358 . 19 Impact . | . . . . . . . . . . . . . . . Slashing . | . . . . . . . . . . . . . . . Piercing . | . . . . . . . . . . . . . . . Highest Corruption 7 | . . . . . . . . . 1 3 3 5 5 7 Average Corruption 2 | . . . . . . . . . 1 2 3 3 4 1 Corruption Purged . | . . . . . . . . . . . . . . . Corruption Blocked . | . . . . . . . . . . . . . . . Effects 66 | . . . . . . . . . 9 . 3 27 15 12 Message Errors 18 | . . . . . . . . . 2 . . 8 6 2 Matter Fused 16 | . . . . . . . . . 1 . 1 6 5 3 Heat Flow Errors 6 | . . . . . . . . . 2 . . 3 1 . Energy Discharges 7 | . . . . . . . . . 1 . 1 2 2 1 Parts Rejected 1 | . . . . . . . . . . . . 1 . . Parts Fused 2 | . . . . . . . . . 1 . . . . 1 Data Loss (minor) 11 | . . . . . . . . . 2 . 1 4 . 4 Misfires 1 | . . . . . . . . . . . . 1 . . Alerts 2 | . . . . . . . . . . . . 1 1 . Weapon Failures 2 | . . . . . . . . . . . . 1 . 1 Overload Shots . | . . . . . . . . . . . . . . . Overflow Damage 332 | . . . . . . 24 4 . 9 37 21 33 110 94 Projectiles 148 | . . . . . . 24 . . 5 11 9 9 63 27 Explosions 155 | . . . . . . . 4 . 3 26 12 24 19 67 Melee 29 | . . . . . . . . . 1 . . . 28 . Knockbacks 39 | . . 1 . . . 1 2 . 2 2 1 15 11 4 Impact 1 | . . 1 . . . . . . . . . . . . Kinetic 37 | . . . . . . 1 2 . 2 2 1 15 10 4 Secondary 1 | . . . . . . . . . . . . . 1 . Self-Inflicted Damage 918 | . . 3 . . . 36 147 . 263 119 41 73 . 236 Shots 24 | . . . . . . 1 3 . 8 4 1 2 . 5 Rammed 15 | . . 2 . . . . . . . . . . 2 11 Targets Rammed 21 | . . 2 . . . . 1 . 3 . . . 4 11 Kicked 6 | . . . . . . . 1 . 3 . . . 2 . Crushed . | . . . . . . . . . . . . . . . Highest Temperature 330 | 40 . 20 . 40 99 330 287 114 230 241 238 187 157 40 Average Temperature 54 | 20 . 15 . 18 39 88 132 36 39 58 70 39 31 12 Received Heat Transfer 2912 | . . . . . 27 204 270 54 360 285 184 678 612 238 Effects 3 | . . . . . . 1 . . . 2 . . . . Energy Bleed 1 | . . . . . . 1 . . . . . . . . Interference 2 | . . . . . . . . . . 2 . . . . Siege Activations . | . . . . . . . . . . . . . . . Martial Activations . | . . . . . . . . . . . . . . . Shielding Activations . | . . . . . . . . . . . . . . . Robots Disrupted . | . . . . . . . . . . . . . . . Combat Hostiles . | . . . . . . . . . . . . . . . Robots Corrupted 2 | . . . . . . . . . 1 . . . 1 . Combat Hostiles . | . . . . . . . . . . . . . . . Parts Fried 5 | . . . . . . . . . 1 . . 2 2 . Impact Corruptions 2 | . . . . . . . . . 1 . . . 1 . Robots Melted 1 | . . . . . . . . . . . 1 . . . Combat Hostiles 1 | . . . . . . . . . . . 1 . . . Parts Melted 8 | . . . . 1 . . 2 . . 1 3 . 1 . Heat Transferred 5356 | . . . . . 222 629 657 148 . 1000 900 250 1300 250 Parts Sabotaged . | . . . . . . . . . . . . . . . Parts Stolen . | . . . . . . . . . . . . . . . Parts Stripped . | . . . . . . . . . . . . . . . Power Chain Reactions . | . . . . . . . . . . . . . . . Alert | -11 -10 -10 -10 -9 -8 -8 -8 -7 -7 -6 -6 -6 -5 -4 ------- Run | Yrd Mat Min Exi Min Mat Gar Mat Fac Sto Fac Gar Fac Fac Fac Maximum Alert Level 2 | . . . . . . 1 . . 1 1 2 2 2 1 Low Security (%) 71 | 100 100 100 . 100 100 23 100 100 81 89 19 . 70 99 Level 1 21 | . . . . . . 76 . . 18 10 32 74 9 . Level 2 7 | . . . . . . . . . . . 48 25 19 . Level 3 . | . . . . . . . . . . . . . . . Level 4 . | . . . . . . . . . . . . . . . Level 5 . | . . . . . . . . . . . . . . . High Security . | . . . . . . . . . . . . . . . Max Security . | . . . . . . . . . . . . . . . Peak Influence 655 | 5 15 59 . 127 48 388 169 42 324 255 655 631 470 204 Initial 297 | . . . . . 30 . 162 42 . 20 114 297 135 165 Average 134 | . 4 6 . 72 17 239 129 6 81 42 371 376 174 86 Influence Increases 6398 | 5 15 59 . 303 124 408 217 84 1178 460 591 1134 947 873 Destroy 0b10 Robot/C 3260 | . . 40 . 240 60 280 80 40 620 240 380 580 360 340 Destroy 0b10 Robot/NC 255 | 5 . . . . 5 . . . 65 30 . 45 30 75 Destroy Leader 742 | . . 10 . 30 22 20 30 20 178 64 40 154 68 106 Allied During Kill 149 | . . . . 15 5 . . . 122 2 . 5 . . Successful Hack 104 | . . . . . 23 12 14 24 6 7 . . 18 . Disable Machine 414 | . . 9 . 18 . . 36 . 72 27 9 72 81 90 Anti-Garrison Action 300 | . . . . . . 50 . . . . 100 150 . . Destroy Structure 844 | . . . . . 9 46 42 . 115 90 62 98 180 202 Partial Spotted 30 | . 15 . . . . . . . . . . . 15 . Lose Combat Pursuer 300 | . . . . . . . 15 . . . . 30 195 60 Influence Decreases 6287 | 5 15 59 . 210 217 20 496 193 1126 327 121 1468 876 1154 Entered New Map 1230 | . . . . . 63 . 226 67 . 32 71 358 186 227 Time Decay 3367 | 5 15 59 . 150 154 . 220 114 696 265 . 610 550 529 Lost Part 730 | . . . . . . . 50 . 20 20 50 180 140 270 Lost Ally 232 | . . . . 60 . 20 . 12 110 10 . 20 . . Purge Threat 728 | . . . . . . . . . 300 . . 300 . 128 Squads Dispatched 33 | . . . . . . . 2 2 7 5 . 6 4 7 Investigation 3 | . . . . . . . 1 . . . . . 1 1 Extermination 13 | . . . . . . . . 1 3 2 . 1 2 4 Reinforcement 13 | . . . . . . . 1 1 2 3 . 3 1 2 Assault 3 | . . . . . . . . . 2 . . 1 . . Garrison 1 | . . . . . . . . . . . . 1 . . Intercept . | . . . . . . . . . . . . . . . Searches Triggered . | . . . . . . . . . . . . . . . Construction Impeded 3 | . . . . . . . . . . . . 2 . 1 Haulers Reinforced 1 | . . . . . . . . . 1 . . . . . Active Scanning Responses . | . . . . . . . . . . . . . . . Cargo Convoy Interrupts 1 | . . . . . . . . . . 1 . . . . Stealth | -11 -10 -10 -10 -9 -8 -8 -8 -7 -7 -6 -6 -6 -5 -4 --------- Run | Yrd Mat Min Exi Min Mat Gar Mat Fac Sto Fac Gar Fac Fac Fac Distress Signals 13 | . . . . 1 1 . . . 2 1 . 2 1 5 Communications Jammed . | . . . . . . . . . . . . . . . Distress Signals . | . . . . . . . . . . . . . . . Times Spotted 247 | . . 3 . 13 4 15 7 6 35 22 19 41 43 39 Peak Tracking Total 13 | . . 3 . 6 3 6 3 2 9 5 7 8 13 7 Tactical Retreats 9 | . . . . . . . 1 . . . . 2 4 2 Traps | -11 -10 -10 -10 -9 -8 -8 -8 -7 -7 -6 -6 -6 -5 -4 ------- Run | Yrd Mat Min Exi Min Mat Gar Mat Fac Sto Fac Gar Fac Fac Fac Traps Triggered 11 | . . . . . . . . 1 2 2 . 5 . 1 Indirectly . | . . . . . . . . . . . . . . . Trap Hack Attempts . | . . . . . . . . . . . . . . . Triggered . | . . . . . . . . . . . . . . . Disarmed . | . . . . . . . . . . . . . . . Reprogrammed . | . . . . . . . . . . . . . . . Reused . | . . . . . . . . . . . . . . . Traps Extracted . | . . . . . . . . . . . . . . . Installed . | . . . . . . . . . . . . . . . Triggered . | . . . . . . . . . . . . . . . Machines | -11 -10 -10 -10 -9 -8 -8 -8 -7 -7 -6 -6 -6 -5 -4 ---------- Run | Yrd Mat Min Exi Min Mat Gar Mat Fac Sto Fac Gar Fac Fac Fac Machines Disabled 50 | . . 1 . 2 . 1 4 . 8 3 3 9 9 10 Max in Single Turn 3 | . . 1 . 1 . 1 3 . 2 1 1 3 3 2 Garrison Access 3 | . . . . . . . 1 . . . . 2 . . Garrison Relay 3 | . . . . . . 1 . . . . 2 . . . Machines Repaired . | . . . . . . . . . . . . . . . Machines Dismantled . | . . . . . . . . . . . . . . . Machines Sabotaged . | . . . . . . . . . . . . . . . Overloaded Fab Kills . | . . . . . . . . . . . . . . . Hacking | -11 -10 -10 -10 -9 -8 -8 -8 -7 -7 -6 -6 -6 -5 -4 --------- Run | Yrd Mat Min Exi Min Mat Gar Mat Fac Sto Fac Gar Fac Fac Fac Machines Accessed 40 | . 1 . . . 6 2 4 3 6 5 . 6 4 3 Terminals 27 | . 1 . . . 3 2 3 2 5 3 . 4 3 1 Fabricators 2 | . . . . . . . . 1 . . . 1 . . Repair Stations 2 | . . . . . . . . . 1 . . . . 1 Recycling Units 3 | . . . . . 1 . . . . . . . 1 1 Scanalyzers 2 | . . . . . 1 . . . . 1 . . . . Garrison Access 4 | . . . . . 1 . 1 . . 1 . 1 . . Total Hacks 73 | . 2 . . . 14 3 9 6 11 6 . 8 6 8 Successful 35 | . 2 . . . 7 1 4 3 6 2 . 4 2 4 Failed 38 | . . . . . 7 2 5 3 5 4 . 4 4 4 Catastrophic 12 | . . . . . 2 . 1 1 2 1 . 3 1 1 Database Lockouts . | . . . . . . . . . . . . . . . Manual 32 | . . . . . 4 . 5 . 6 4 . 5 5 3 Terminals 50 | . 2 . . . 7 3 8 3 9 4 . 6 5 3 Fabricators 4 | . . . . . . . . 3 . . . 1 . . Repair Stations 4 | . . . . . . . . . 2 . . . . 2 Recycling Units 5 | . . . . . 1 . . . . . . . 1 3 Scanalyzers 6 | . . . . . 5 . . . . 1 . . . . Garrison Access 4 | . . . . . 1 . 1 . . 1 . 1 . . Terminal Hacks 20 | . 2 . . . 3 1 3 2 4 1 . 2 1 1 Robot Analysis 1 | . . . . . 1 . . . . . . . . . Open Door 2 | . . . . . . . . . 2 . . . . . Level Access Points 2 | . 1 . . . . . 1 . . . . . . . Branch Access Points 3 | . . . . . . . 1 . . 1 . . 1 . Emergency Access Points 1 | . . . . . . 1 . . . . . . . . Alert Level 2 | . . . . . 1 . 1 . . . . . . . Unreport Threat 5 | . . . . . . . . . 2 . . 2 . 1 Zone Layout 4 | . 1 . . . 1 . . 2 . . . . . . Fabricator Hacks 2 | . . . . . . . . 1 . . . 1 . . Load Schematic 1 | . . . . . . . . . . . . 1 . . Build 1 | . . . . . . . . 1 . . . . . . Repair Station Hacks 3 | . . . . . . . . . 2 . . . . 1 Scan Component 2 | . . . . . . . . . 1 . . . . 1 Repair 1 | . . . . . . . . . 1 . . . . . Recycling Unit Hacks 4 | . . . . . 1 . . . . . . . 1 2 Report Inventory 3 | . . . . . 1 . . . . . . . 1 1 Retrieve Components 1 | . . . . . . . . . . . . . . 1 Scanalyzer 2 | . . . . . 2 . . . . . . . . . Insert Component 1 | . . . . . 1 . . . . . . . . . Analyze 1 | . . . . . 1 . . . . . . . . . Garrison Access Hacks 4 | . . . . . 1 . 1 . . 1 . 1 . . Unlock Access 2 | . . . . . 1 . . . . 1 . . . . Seal Access 2 | . . . . . . . 1 . . . . 1 . . Unauthorized Hacks . | . . . . . . . . . . . . . . . Terminals . | . . . . . . . . . . . . . . . Fabricators . | . . . . . . . . . . . . . . . Repair Stations . | . . . . . . . . . . . . . . . Recycling Units . | . . . . . . . . . . . . . . . Scanalyzers . | . . . . . . . . . . . . . . . Garrison Access . | . . . . . . . . . . . . . . . Data Cores Recovered . | . . . . . . . . . . . . . . . Used . | . . . . . . . . . . . . . . . Hacking Detections 23 | . . . . . 5 1 2 1 2 3 . 4 2 3 Full Trace Events 3 | . . . . . . . 1 . . . . . 1 1 Feedback Events . | . . . . . . . . . . . . . . . Feedback Blocked . | . . . . . . . . . . . . . . . Robot Schematics Acquired . | . . . . . . . . . . . . . . . Robots Built . | . . . . . . . . . . . . . . . Authchips . | . . . . . . . . . . . . . . . Time . | . . . . . . . . . . . . . . . Total Robot Build Rating . | . . . . . . . . . . . . . . . Part Schematics Acquired 1 | . . . . . 1 . . . . . . . . . Parts Built 2 | . . . . . . . . 2 . . . . . . Authchips . | . . . . . . . . . . . . . . . Time 42 | . . . . . . . . 42 . . . . . . Total Part Build Rating 8 | . . . . . . . . 8 . . . . . . Parts Repaired 1 | . . . . . . . . . 1 . . . . . Time 44 | . . . . . . . . . 44 . . . . . Parts Recycled . | . . . . . . . . . . . . . . . Recycled Matter . | . . . . . . . . . . . . . . . Retrieved Matter . | . . . . . . . . . . . . . . . Retrieved Components 3 | . . . . . . . . . . . . . . 3 Parts Scanalyzed 1 | . . . . . 1 . . . . . . . . . Part Schematics Acquired 1 | . . . . . 1 . . . . . . . . . Parts Damaged . | . . . . . . . . . . . . . . . Bothacking | -11 -10 -10 -10 -9 -8 -8 -8 -7 -7 -6 -6 -6 -5 -4 ------------ Run | Yrd Mat Min Exi Min Mat Gar Mat Fac Sto Fac Gar Fac Fac Fac Used RIF Installer 2 | . . . . . . 1 . . . . 1 . . . Alert ID Control 1 | . . . . . . . . . . . 1 . . . Robots Hacked 3 | . . . . . . . 2 . . . . 1 . . Non-combat . | . . . . . . . . . . . . . . . Combat 3 | . . . . . . . 2 . . . . 1 . . Robot Hacks Applied 3 | . . . . . . . 2 . . . . 1 . . formatsys_high 3 | . . . . . . . 2 . . . . 1 . . Relay Couplers Released 13 | . . . . . . 5 . . . . 7 1 . . Machine Destruction 13 | . . . . . . 5 . . . . 7 1 . . Attached 2 | . . . . . . . 1 . . . . 1 . . Fabnet Peak Effective % . | . . . . . . . . . . . . . . . Robots Rewired 4 | . . . 4 . . . . . . . . . . . Allies Hacked 1 | . . . . . . . . . 1 . . . . . Hacks Repelled . | . . . . . . . . . . . . . . . Allies | -11 -10 -10 -10 -9 -8 -8 -8 -7 -7 -6 -6 -6 -5 -4 -------- Run | Yrd Mat Min Exi Min Mat Gar Mat Fac Sto Fac Gar Fac Fac Fac Total Allies 20 | . . . 4 1 . . 2 . 12 . . 1 . . Largest Group 10 | . . . 4 4 2 2 2 2 10 3 . 1 . . Highest-Rated Group 173 | . . . 45 52 52 52 30 30 173 45 . 85 . . Highest-Rated Ally 85 | . . . 21 31 31 31 15 15 31 16 . 85 . . Total Orders 4 | . . . . . . . . . 2 . . . . 2 EXPLORE 4 | . . . . . . . . . 2 . . . . 2 Ally Attacks 199 | . . . . 22 9 15 1 7 119 10 . 16 . . Total Damage 3189 | . . . . 279 203 313 17 90 1387 137 . 763 . . Kills 39 | . . . . 10 2 4 1 . 13 2 . 7 . . Allies Corrupted 1 | . . . . . . . . . 1 . . . . . Allies Melted . | . . . . . . . . . . . . . . . Intel | -11 -10 -10 -10 -9 -8 -8 -8 -7 -7 -6 -6 -6 -5 -4 ------- Run | Yrd Mat Min Exi Min Mat Gar Mat Fac Sto Fac Gar Fac Fac Fac Active Infowar (turns) 6840 | . 77 560 536 303 367 50 44 677 1995 875 261 275 . 820 Optics 820 | . . . . . . . . . . . . . . 820 Sensors 4945 | . . . . . 302 50 . 669 1995 875 261 275 . 518 Traps 743 | . . . . . . . 44 677 22 . . . . . Seismic 1586 | . 77 560 536 303 110 . . . . . . . . . Cloaking 1 | . . . . . 1 . . . . . . . . . Robot Analysis Total 1 | . . . . . 1 . . . . . . . . . Derelict Logs Recovered 4 | . . 3 . 1 . . . . . . . . . . Drone Launches 4 | . . . . . . . . . 2 . . . . 2 Drone Recoveries 3 | . . . . . . . . . 1 . . . . 2 Exploration | -11 -10 -10 -10 -9 -8 -8 -8 -7 -7 -6 -6 -6 -5 -4 ------------- Run | Yrd Mat Min Exi Min Mat Gar Mat Fac Sto Fac Gar Fac Fac Fac Turns Passed 11142 | 86 77 560 536 303 367 734 455 677 1995 1211 468 1222 1105 1346 Spaces Moved 7798 | 61 83 536 546 209 289 350 226 436 1256 617 273 902 935 1079 Core 381 | 26 . . . . . . . . . . . . 244 111 Treads . | . . . . . . . . . . . . . . . Legs 4637 | . . . . . . 295 226 436 1256 617 273 902 632 . Wheels 2718 | 35 83 536 546 209 289 55 . . . . . . 59 906 Hover 62 | . . . . . . . . . . . . . . 62 Flight . | . . . . . . . . . . . . . . . Fastest Speed 50 | 50 90 90 90 105 102 102 122 122 122 120 113 95 50 50 Average Speed 112 | 100 90 90 90 105 102 179 165 122 124 135 134 104 96 93 Slowest Speed 650 | 200 90 90 105 105 102 540 193 122 195 192 187 182 185 650 Overloaded Moves . | . . . . . . . . . . . . . . . Propulsion Burnouts . | . . . . . . . . . . . . . . . Robots Hopped . | . . . . . . . . . . . . . . . Potential Cave-ins 6 | . . . . . . . . . 4 . . . . 2 Cave-ins Triggered 1 | . . . . . . . . . . . . . 1 . Exploration Rate (%) 37 | 3 22 98 91 46 24 43 23 9 94 17 27 26 26 16 Regions Visited 14 Branch Regions 4 Pre-discovered Areas 4 | . . 3 . 1 . . . . . . . . . . Known Exits Taken 3 | . . . . . 1 . 1 . . 1 . . . . Unknown Exits Taken 9 | 1 1 1 1 1 . . . 1 1 . . 1 1 . Scrap Searched 2 | . . 1 . 1 . . . . . . . . . . Spaces Dug 93 | . . . . . 10 6 . . 58 7 . 2 2 8 Terrain Destroyed 772 | . . . . . 10 6 39 . 184 136 67 105 106 119 Melee . | . . . . . . . . . . . . . . . Projectile 49 | . . . . . . . 1 . 7 12 . 6 7 16 AOE 723 | . . . . . 10 6 38 . 177 124 67 99 99 103 Terrain Rammed . | . . . . . . . . . . . . . . . Walls Destroyed . | . . . . . . . . . . . . . . . Machines Disabled . | . . . . . . . . . . . . . . . Actions | -11 -10 -10 -10 -9 -8 -8 -8 -7 -7 -6 -6 -6 -5 -4 --------- Run | Yrd Mat Min Exi Min Mat Gar Mat Fac Sto Fac Gar Fac Fac Fac Total 9486 | 78 85 606 587 280 345 413 282 563 1575 911 324 1091 1041 1305 Wait 799 | . . 64 9 63 18 9 14 99 203 197 . 46 14 63 Move 7787 | 60 82 535 545 208 289 349 225 435 1255 617 272 901 935 1079 Hop . | . . . . . . . . . . . . . . . Pick Up 165 | 8 2 1 2 2 13 11 11 4 12 18 4 40 6 31 Fast Attach 4 | . . . . . . . 1 1 2 . . . . . Attach 132 | 6 1 . . . 9 5 5 3 2 11 10 34 14 32 Detach 9 | . . . . . 1 1 . . . . 2 1 2 2 Swap 64 | . . . 1 . 4 4 5 3 17 4 4 12 7 3 Drop 70 | . . . 1 . 3 5 5 3 14 15 2 9 8 5 Fire 394 | 4 . 4 . 7 8 29 12 10 62 49 30 48 52 79 Melee 3 | . . . . . . . 3 . . . . . . . Ram 14 | . . 2 . . . . . . . . . . 1 11 Kick 6 | . . . . . . . 1 . 3 . . . 2 . Crush . | . . . . . . . . . . . . . . . Escape Stasis 10 | . . . . . . . . 5 5 . . . . . Rewire 29 | . . . 29 . . . . . . . . . . . Trap . | . . . . . . . . . . . . . . . Miscellaneous . | . . . . . . . . . . . . . . . Route ------- -11/Scrapyard -10/Materials (discovered 4 exits: Mat x3 / [*Min]) -10/Mines (discovered 3 exits: *Mat x2 / *Exi) -10/Exiles -9/Mines -8/Materials -8/Garrison -8/Materials (discovered 3 exits: *Fac x3) -7/Factory -7/Storage -6/Factory (discovered 3 exits: *Low x2 / Gar) -6/Garrison -6/Factory -5/Factory (discovered 3 exits: *Fac / Upp x2) -4/Factory (discovered 1 exit: [*Res]) History --------- Turn | Location | Event 13 | -11/Scrapyard | Discovered new exit (range 16) 87 | -11/Scrapyard | Entered Materials 141 | -10/Materials | Identified exit to Materials 141 | -10/Materials | Discovered new exit (range 15) 164 | -10/Materials | Entered Mines 170 | -10/Mines | Met a Derelict bent on vengeance 205 | -10/Mines | Received a Rocket Launcher from a helpful Derelict 220 | -10/Mines | Learned location of Storage (-7) 317 | -10/Mines | Build established: Mutant 374 | -10/Mines | Discovered exit to Materials (range 6) 416 | -10/Mines | Learned location of Zion (-7) 426 | -10/Mines | A weapon hastily lodged in a ceiling crevice suddenly fell to the ground 538 | -10/Mines | Discovered exit to Materials (range 7) 721 | -10/Mines | Deemed a non-threat by the Exiles lab entrance 721 | -10/Mines | Discovered new exit (range 5) 724 | -10/Mines | Entered Exiles 724 | -10/Exiles | Found Exiles lab destroyed 1236 | -10/Exiles | Discovered new exit (range 14) 1260 | -10/Exiles | Entered Mines 1260 | -9/Mines | Accompanied by 4 allies 1261 | -9/Mines | Assembled infested the area 1301 | -9/Mines | Lost 3 allies 1504 | -9/Mines | Escorted by a lone wolf Derelict 1513 | -9/Mines | Learned Materials trap positions 1552 | -9/Mines | Discovered new exit (range 5) 1563 | -9/Mines | Entered Materials 1563 | -8/Materials | Accompanied by 2 allies 1563 | -8/Materials | Evolved 4 slots: Propulsion x2, Utility x2 1564 | -8/Materials | Loaded intel: 14 trap records 1930 | -8/Materials | Identified exit to Garrison 1930 | -8/Materials | Entered Garrison 1930 | -8/Garrison | Accompanied by 2 allies 1990 | -8/Garrison | Triggered checkpoint 2078 | -8/Garrison | Triggered checkpoint 2185 | -8/Garrison | Installed Relay Interface Framework 2306 | -8/Garrison | Discovered new exit (range 14) 2321 | -8/Garrison | Build established: Scavenger-Mutant 2584 | -8/Garrison | Garrison Relay disabled 2646 | -8/Garrison | Spotted B-75 Beast 2646 | -8/Garrison | Spotted B-75 Beast 2664 | -8/Garrison | Entered Materials 2881 | -8/Materials | Lost 3 parts (1p1n1w) 3018 | -8/Materials | Discovered new exit (range 5) 3080 | -8/Materials | Identified exit to Factory 3119 | -8/Materials | Entered Factory 3119 | -7/Factory | Accompanied by 2 allies 3119 | -7/Factory | Evolved 2 slots: Propulsion x1, Utility x1 3148 | -7/Factory | Build established: Mutant 3516 | -7/Factory | Discovered new exit (range 4) 3682 | -7/Factory | Fabricated Gauss Rifle (x2) 3796 | -7/Factory | Entered Storage 4225 | -7/Storage | Met a pair of Derelict thieves 4324 | -7/Storage | Destroyed 9 combat bots 4489 | -7/Storage | Assisted by bots powering up and referring to "LRC-V3" 4680 | -7/Storage | Discovered new exit (range 16) 4815 | -7/Storage | Build established: Commander-Mutant 5651 | -7/Storage | Repaired Imp. Carbon-fiber Leg 5791 | -7/Storage | Entered Factory 5791 | -6/Factory | Accompanied by 3 allies 5791 | -6/Factory | Evolved 2 slots: Power x1, Utility x1 5910 | -6/Factory | Discovered new exit (range 15) 6163 | -6/Factory | Build established: Mutant 6323 | -6/Factory | Identified exit to Lower Caves 6720 | -6/Factory | Lost 3 parts (1p2u) 6893 | -6/Factory | Cargo convoy interrupted 7002 | -6/Factory | Identified exit to Garrison 7002 | -6/Factory | Entered Garrison 7038 | -6/Garrison | Expanded RIF knowledge: Alert ID Control 7155 | -6/Garrison | Garrison Relay disabled 7202 | -6/Garrison | Triggered checkpoint 7244 | -6/Garrison | Triggered checkpoint 7286 | -6/Garrison | Lost 5 parts (2p2u1w) 7295 | -6/Garrison | Destroyed 13 combat bots 7359 | -6/Garrison | Discovered new exit (range 12) 7386 | -6/Garrison | Triggered checkpoint 7412 | -6/Garrison | Garrison Relay disabled 7470 | -6/Garrison | Entered Factory 7769 | -6/Factory | Spotted B-75 Beast 7775 | -6/Factory | Assimilated Beast 5a with formatsys_high 7826 | -6/Factory | Lost 8 parts (2p1n2u3w) 7942 | -6/Factory | Core integrity fell below 50% 7990 | -6/Factory | Lost 4 parts (1p1n2u) 8034 | -6/Factory | Found Prototype Launcher 8144 | -6/Factory | Identified Scatter Rocket Array 8411 | -6/Factory | Build established: Hacker-Mutant 8639 | -6/Factory | Discovered new exit (range 11) 8692 | -6/Factory | Entered another Factory area 8692 | -5/Factory | Evolved 2 slots: Propulsion x1, Utility x1 9119 | -5/Factory | Identified exit to Upper Caves 9228 | -5/Factory | Crushed by falling debris 9267 | -5/Factory | Lost 3 parts (2u1w) 9421 | -5/Factory | Lost 3 parts (2n1u) 9560 | -5/Factory | Lost 7 parts (3p3n1w) 9790 | -5/Factory | Discovered new exit (range 5) 9797 | -5/Factory | Core integrity fell below 50% 9797 | -5/Factory | Entered another Factory area 9797 | -4/Factory | Evolved 2 slots: Power x1, Propulsion x1 10126 | -4/Factory | Lost 4 parts (1p1n1u1w) 10192 | -4/Factory | Lost 7 parts (2p1n1u3w) 10500 | -4/Factory | Found Prototype Launcher 10501 | -4/Factory | Identified Mni. Smartbomb Launcher 10521 | -4/Factory | Found Mni. Smartbomb Launcher 10735 | -4/Factory | Build established: Scavenger-Skirmisher 10954 | -4/Factory | Discovered new exit (range 19) 11020 | -4/Factory | Lost 4 parts (1p1n1u1w) 11038 | -4/Factory | Core integrity fell below 50% 11095 | -4/Factory | Core integrity fell below 20% 11122 | -4/Factory | Lost 8 parts (1p2n2u3w) 11143 | -4/Factory | Destroyed by P-70 Sage with High-powered Shock Rifle Last Messages --------------- Hacking Suite destroyed. System corrupted by crushing effect (+2). Destabilizing: Core damaged (-11). Penetrated by Slug. Slammed into H-77 Assassin. Adv. Signal Interpreter broken. Destabilizing: Short circuit. Slammed into H-77 Assassin. U-05 Engineer lays Concrete. Slug penetrates Wall. Slammed into H-77 Assassin. Slug penetrates Wall. System corrupted: Matter fused (-9). Manufacturing Mainframe disabled. U-05 Engineer works on Manufacturing Mainframe. System corrupted: Energy discharge (-31). Subcomponent Replicator disabled. P-70 Sage resets P-80 Master, system corruption cleaned. Map ----- +----------------------------------------------------+ | ?????????????????????????????????????????????????? | | ?????????????????????????????????????????????????? | | ?????????????????????????????????????????????????? | | ?????????????????????????????????????????????????? | | ?????????????????????????????????????????????????? | | ?????????????????????????????????????????????????? | | ?????????????????????????????????????????????????? | | ?????????????????????????????????????????????????? | | ?????????????????????????????????????????????????? | | ?????????????????????????????????????????????????? | | ?????????????????????????????????????????????????? | | ?????????????????????????????????????????????????? | | ?????????????????????????????????????????????????? | | ?????????????????????????????????????????????????? | | ?????????????????????????????????????????????????? | | ?????????????????????????????????????????####????? | | ???????????????????????????????????????? = #????? | | ??????????????????????????????????#??? #????? | | ??????????????????????????????????# """"""" #????? | | ??????????????????????????????????# """"""" #????? | | ??????????????????????????????????# """"""" ###### | | ??????????????????????????????????# """"""" # | | ??????????????????????????????????# # | | ??????????????????????????????????# # """ | | ?????????????????##+####################+##+# """ | | ?????????? @ R # """ | | ?????????? pp # """ | | ?????????? "" "" " """ + | | ??????????? "" "" "" """ # """ | | ??????????? """ """ """ """ + """ | | ????????????#######+##### """ """ """ """ # """ | | ????????????????????????# """ """ """ # "" | | ????????????????????????# # | | ????????????????????????# ! ####+# | | ????????????????????????# #??# # | | ????????????????????????# #??# # | | ????????????????????????# #??# # | | ????????????????????????##### ##############???# # | | ????????????????????????????? ?????????????????# + | | ????????????????????????????? ?????????????????# # | | ????????????????????????????? ?????????????????# # | | ???????????????????????????????????????????????# # | | ???????????????????????????????????????????????# # | | ???????????????????????????????????????????????# # | | ???????????????????????????????????????????????# # | | ???????????????????????????????????????????????# # | | ???????????????????????????????????????????????# # | | ???????????????????????????????????????????????# | | ???????????????????????????????????????????????# | | ?????????????????????????????????????????????### | +----------------------------------------------------+ Best States ------------- Heat Dissipation 54 Energy Generation 28 Energy Capacity 350 Matter Stores 300 Matter Capacity 300 Sight Range 20 Robot Scan Range 16 Terrain Scan Density 10 Armor Coverage 600 Resistance: KI 20 Resistance: TH 20 Resistance: EX 20 Resistance: EM 20 Resistance: I 20 Resistance: S 20 Resistance: P 20 Power Shielding 66 Propulsion Shielding 66 Utility Shielding 66 Evasion (%) 56 Targeting Accuracy 24 Target Analysis 9 Core Analysis 6 Offensive Hacking 20 Relay Coupler Types 1 Relay Coupler Value 28 Item Schematics ----------------- Rocket Launcher | -8/Materials | Scanalyzed Robot Schematics ------------------ None Fabricated ------------ Gauss Rifle | x2 | -7/Factory | Preloaded Repaired ---------- Imp. Carbon-fiber Leg | 16% | -7/Storage Alien Tech Used ----------------- None Achievements -------------- None Challenges ------------ None Game ------ Seed BoltLobotomyBasin Manual? 0 Play Time 01:46:36 Cumulative 80.0 hours Start 2025.07.05 @ 23:27:19 End 2025.07.06 @ 22:57:02 Sessions 11 Manual Loads 0 Difficulty Adventurer Special Mode None Game No. 74 Rogue 0 Adventurer 74 Explorer 0 Win Type - Total 1 Types 1/0/0/0/0/0/0/0/0/0 Lore% 49 Gallery% 46 Achievement% 44 Wizard Run 0 Options --------- Layout 1 ASCII 0 Keyboard 0 Movement Mouse Keybinds 0 Fullscreen 1 Font 24/Smallcaps Map View 50x35 Zoom Use 1% Tactical HUD 0 Map Filters NONE Filters NONE Steam 1 RUN: dee25220-05c2-4ede-9277-96a988032afb